bitfinex-derivatives/quotes_SOLF0:USTF0_20220109
["timestamp","ask_amount","ask_price","bid_price","bid_amount"]
[1641763360765,6.69518812,143.39,143.28,40.37913022]
[1641763360969,6.69518812,143.39,143.29,1.85260752]
[1641763361267,6.69518812,143.39,143.33,27.66479]
[1641763361766,3.95967451,143.38,143.33,27.66479]
[1641763361966,3.95967451,143.38,143.3,27.66479]
[1641763362168,14.34045143,143.38,143.3,27.66479]
[1641763362370,4.0,143.35,143.26,14.78712616]
[1641763362567,1.744,143.34,143.26,14.78712616]
[1641763362968,4.0,143.35,143.26,14.78712616]
[1641763363168,1.744,143.34,143.27,1.85373151]
[1641763363369,3.95967451,143.33,143.27,1.85373151]
[1641763364568,3.95967451,143.33,143.26,1.85373151]
[1641763365970,3.95967451,143.33,143.26,5.85363151]
[1641763366270,3.95967451,143.33,143.26,1.85373151]
[1641763366470,14.46835793,143.36,143.27,1.85373151]
[1641763366671,16.21235793,143.36,143.27,1.85373151]
[1641763366871,20.21235793,143.36,143.28,1.85373151]
[1641763367072,14.46835793,143.36,143.28,1.85373151]
[1641763367273,10.50868342,143.35,143.28,1.85373151]
[1641763367472,14.46835793,143.35,143.29,1.85373151]
[1641763367873,14.46835793,143.36,143.3,1.85373151]
[1641763368274,14.46835793,143.36,143.29,32.2418]
[1641763372078,4.0,143.35,143.29,32.2418]
[1641763372281,5.744,143.35,143.29,32.2418]
[1641763372479,3.95967451,143.34,143.29,32.2418]
[1641763373880,3.95967451,143.34,143.28,27.66479]
[1641763374081,5.70367451,143.34,143.28,27.66479]
[1641763374681,3.95967451,143.33,143.29,1.47968433]
[1641763376782,3.95967451,143.34,143.29,1.47968433]
[1641763376983,7.95967451,143.34,143.29,1.47968433]
[1641763377686,3.95967451,143.33,143.29,1.47968433]
[1641763378288,3.95967451,143.34,143.29,1.47968433]
[1641763380587,3.95967451,143.34,143.27,1.47968433]
[1641763381086,18.4690556,143.34,143.27,1.47968433]
[1641763381489,3.95967451,143.33,143.27,1.47968433]
[1641763381688,13.54158392,143.33,143.27,1.47968433]
[1641763382188,5.58268235,143.31,143.27,1.47968433]
[1641763382388,5.58268235,143.31,143.25,1.47968433]
[1641763382587,9.58268235,143.31,143.25,1.47968433]
[1641763382788,3.95967451,143.3,143.25,1.47968433]
[1641763385192,3.95967451,143.3,143.26,2.46309408]
[1641763385692,3.95967451,143.3,143.27,1.47968433]
[1641763386092,3.95967451,143.3,143.26,2.46309408]
[1641763386593,3.95967451,143.3,143.27,1.48004972]
[1641763386994,3.95967451,143.33,143.27,1.48004972]
[1641763387394,3.95967451,143.33,143.26,5.47994972]
[1641763387594,3.95967451,143.33,143.28,27.66479]
[1641763387796,3.95967451,143.33,143.28,30.13020421]
[1641763388399,3.95967451,143.34,143.29,1.48004972]
[1641763388797,3.95967451,143.34,143.29,3.94546393]
[1641763389197,3.95967451,143.34,143.29,2.46541421]
[1641763389398,2.4715546,143.33,143.28,27.66479]
[1641763389797,3.95967451,143.32,143.29,1.47966146]
[1641763390198,3.95967451,143.32,143.29,3.9497505]
[1641763390599,3.95967451,143.32,143.29,2.47008904]
[1641763391000,3.95967451,143.32,143.28,27.66479]
[1641763391499,3.95967451,143.34,143.29,1.47957453]
[1641763391698,3.95967451,143.34,143.29,37.1044354]
[1641763392500,2.47215301,143.33,143.3,2.47006087]
[1641763392899,3.95967451,143.32,143.3,2.47006087]
[1641763394202,3.95967451,143.34,143.3,2.47006087]
[1641763395107,2.47263648,143.33,143.29,33.1548]
[1641763395506,3.95967451,143.32,143.29,33.1548]
[1641763395906,3.95967451,143.32,143.3,2.47069433]
[1641763396507,3.95967451,143.32,143.29,33.1548]
[1641763396907,3.95967451,143.33,143.29,33.1548]
[1641763397308,3.95967451,143.33,143.3,2.47065569]
[1641763398008,3.95967451,143.34,143.3,2.47065569]
[1641763398208,3.95967451,143.32,143.3,2.47065569]
[1641763398610,2.47274515,143.33,143.3,2.47065569]
[1641763399110,3.95967451,143.32,143.3,2.47065569]
[1641763400510,3.95967451,143.34,143.3,2.47065569]
[1641763401211,3.95967451,143.34,143.3,6.47055569]
[1641763401912,2.47288376,143.33,143.3,3.9999]
[1641763402310,3.95967451,143.32,143.3,3.9999]
[1641763402510,3.95967451,143.32,143.31,2.47076952]
[1641763402712,3.95967451,143.34,143.31,2.47076952]
[1641763403211,3.95967451,143.35,143.32,1.47884423]
[1641763403411,3.95967451,143.35,143.32,9.91184423]
[1641763404111,3.95967451,143.35,143.33,2.47076952]
[1641763404513,3.95967451,143.37,143.33,2.47076952]
[1641763405713,3.95967451,143.37,143.32,12.4329]
[1641763405914,2.47034616,143.36,143.32,12.4329]
[1641763406113,2.47034616,143.36,143.32,8.433]
[1641763406313,3.95967451,143.35,143.33,1.4785551]
[1641763406914,14.78712616,143.39,143.33,1.4785551]
[1641763407315,17.25723961,143.39,143.34,27.66479]
[1641763408415,3.95953278,143.38,143.34,27.66479]
[1641763409616,2.47011345,143.37,143.31,31.66469]
[1641763410318,3.95953278,143.36,143.32,4.92091647]
[1641763410918,3.95953278,143.36,143.32,2.45488772]
[1641763411119,3.95953278,143.36,143.33,2.45488772]
[1641763411620,3.95953278,143.36,143.31,64.41509]
[1641763411621,3.95953278,143.37,143.32,2.45488772]
[1641763413221,2.46783931,143.36,143.32,2.45488772]
[1641763413621,3.95953278,143.35,143.32,2.45488772]
[1641763415024,8.66497677,143.38,143.32,2.45488772]
[1641763415827,2.46872407,143.37,143.32,2.45488772]
[1641763416230,3.95953278,143.36,143.32,2.45488772]
[1641763417529,3.95953278,143.37,143.32,2.45488772]
[1641763417729,5.70353278,143.37,143.32,2.45488772]
[1641763417931,10.40954299,143.37,143.31,32.7504]
[1641763418131,8.66554299,143.37,143.31,32.7504]
[1641763418330,3.95953278,143.36,143.31,32.7504]
[1641763418531,11.73853278,143.36,143.31,32.7504]
[1641763418733,10.24790624,143.36,143.31,32.7504]
[1641763419133,3.95953278,143.35,143.31,32.7504]
[1641763419532,10.42843902,143.35,143.27,44.19591616]
[1641763419736,4.0,143.34,143.27,14.78712616]
[1641763419933,1.744,143.33,143.28,2.45621531]
[1641763420134,7.32556377,143.33,143.28,2.45621531]
[1641763420533,3.95953278,143.32,143.25,2.46780343]
[1641763421034,3.95953278,143.32,143.26,2.45644536]
[1641763421236,7.95953278,143.32,143.26,2.45644536]
[1641763421836,3.95953278,143.31,143.26,2.45644536]
[1641763422238,6.42843902,143.31,143.27,2.46780343]
[1641763422638,3.95953278,143.3,143.27,2.46780343]
[1641763423438,12.66763027,143.32,143.27,2.46780343]
[1641763423638,12.66763027,143.32,143.25,2.46780343]
[1641763423839,3.95953278,143.31,143.25,2.46780343]
[1641763424238,3.95953278,143.31,143.26,2.45672004]
[1641763425641,3.95953278,143.31,143.25,2.45672004]
[1641763426240,8.6676886,143.32,143.25,2.45672004]
[1641763426440,3.95953278,143.3,143.25,2.45672004]
[1641763427041,8.66796146,143.31,143.25,2.45672004]
[1641763427442,3.95953278,143.31,143.24,36.90252004]
[1641763427844,3.95953278,143.31,143.25,2.45672004]
[1641763428242,8.6676303,143.32,143.25,2.45672004]
[1641763429048,3.95953278,143.32,143.25,2.45672004]
[1641763429247,4.0,143.31,143.25,2.45672004]
[1641763429449,4.0,143.3,143.25,2.45672004]
[1641763429649,12.72431551,143.31,143.23,27.66479]
[1641763430048,6.42491793,143.29,143.23,27.66479]
[1641763430450,3.95953278,143.28,143.24,2.45697233]
[1641763431253,3.95953278,143.3,143.24,2.45697233]
[1641763434352,3.95953278,143.3,143.26,3.9999]
[1641763434750,3.95953278,143.31,143.27,2.45697233]
[1641763434951,3.95953278,143.31,143.27,8.91757891]
[1641763435152,3.95953278,143.33,143.27,8.91757891]
[1641763435552,3.95953278,143.33,143.28,27.66479]
[1641763435753,3.95953278,143.34,143.28,30.12176233]
[1641763436152,3.95953278,143.34,143.29,2.45697233]
[1641763436954,3.95953278,143.34,143.28,27.66479]
[1641763437153,12.66603815,143.35,143.28,27.66479]
[1641763437552,8.66603815,143.34,143.28,27.66479]
[1641763438554,3.95953278,143.34,143.29,2.45596226]
[1641763438956,8.66564349,143.35,143.29,2.45596226]
[1641763439157,12.66564349,143.35,143.29,2.45596226]
[1641763439759,6.42424332,143.34,143.29,2.45596226]
[1641763440260,3.95953278,143.33,143.29,36.15906226]
[1641763440559,3.95953278,143.33,143.29,33.7031]
[1641763441560,10.40951471,143.36,143.29,33.7031]
[1641763441860,8.66551471,143.35,143.29,33.7031]
[1641763442561,2.46520539,143.34,143.29,33.7031]
[1641763443163,3.95953278,143.33,143.29,33.7031]
[1641763444463,8.66550422,143.35,143.29,33.7031]
[1641763445064,8.66550422,143.35,143.3,3.9999]
[1641763445264,2.46611511,143.34,143.31,3.9999]
[1641763445565,2.46611511,143.34,143.3,2.45567935]
[1641763445763,3.95953278,143.33,143.32,2.45567935]
[1641763445964,3.95953278,143.33,143.32,30.12046935]
[1641763446165,3.95953278,143.33,143.32,27.66479]
[1641763446366,46.87172616,143.39,143.32,27.66479]
[1641763446565,3.95945431,143.38,143.33,35.5127]
[1641763447366,14.78712616,143.4,143.33,35.5127]
[1641763447569,2.46663399,143.37,143.33,35.5127]
[1641763447767,2.46663399,143.37,143.32,27.66479]
[1641763448168,3.9594404,143.36,143.28,42.45191616]
[1641763448367,3.9594404,143.36,143.29,33.2097]
[1641763448569,5.93961936,143.36,143.29,36.06126335]
[1641763448970,5.93961936,143.36,143.3,2.85156335]
[1641763450071,2.46663399,143.35,143.3,2.85156335]
[1641763450774,3.9594404,143.34,143.3,2.85156335]
[1641763453275,3.9594404,143.36,143.3,2.85156335]
[1641763453775,2.4666179,143.35,143.3,2.85156335]
[1641763454475,3.9594404,143.34,143.3,2.85156335]
[1641763456177,3.9594404,143.36,143.3,2.85156335]
[1641763456978,2.46668357,143.35,143.3,2.85156335]
[1641763457479,3.9594404,143.34,143.3,2.85156335]
[1641763458780,3.9594404,143.36,143.3,2.85156335]
[1641763459881,2.46799655,143.35,143.3,2.85156335]
[1641763460482,3.9594404,143.34,143.3,2.85156335]
[1641763460882,3.9594404,143.34,143.29,33.2097]
[1641763461383,2.46799655,143.33,143.29,33.2097]
[1641763461984,3.9594404,143.32,143.29,33.2097]
[1641763462484,3.9594404,143.32,143.3,3.64367019]
[1641763463384,3.9594404,143.35,143.3,3.64367019]
[1641763463784,18.74656656,143.35,143.3,3.64367019]
[1641763464184,3.9594404,143.34,143.3,3.64367019]
[1641763464587,10.43024899,143.34,143.3,3.64367019]
[1641763464785,6.43024899,143.34,143.3,3.64367019]
[1641763464985,3.9594404,143.33,143.3,3.64367019]
[1641763465191,6.43024899,143.33,143.3,3.64367019]
[1641763465385,12.55424899,143.33,143.3,3.64367019]
[1641763465884,3.9594404,143.32,143.29,3.64367019]
[1641763466785,3.9594404,143.32,143.28,3.64367019]
[1641763467587,3.9594404,143.32,143.26,3.64367019]
[1641763468288,3.9594404,143.32,143.26,31.30846019]
[1641763468489,3.9594404,143.32,143.26,66.09886019]
[1641763468690,3.9594404,143.32,143.27,2.46938732]
[1641763468891,3.9594404,143.32,143.27,6.11305751]
[1641763469291,3.9594404,143.33,143.28,3.64367019]
[1641763469493,3.9594404,143.33,143.28,6.11305751]
[1641763470092,2.47115977,143.32,143.29,3.64367019]
[1641763470491,3.9594404,143.31,143.27,3.64367019]
[1641763471495,13.54204375,143.31,143.27,3.64367019]
[1641763472199,3.9594404,143.3,143.25,3.64367019]
[1641763472599,4.0,143.27,143.25,3.64367019]
[1641763472901,9.58447337,143.26,143.25,3.64367019]
[1641763473099,13.54391377,143.26,143.21,14.78712616]
[1641763473498,3.9594404,143.25,143.22,3.64601583]
[1641763473698,5.5851489,143.24,143.22,3.64601583]
[1641763474398,3.9594404,143.23,143.22,3.64601583]
[1641763474599,3.9594404,143.23,143.18,30.13015613]
[1641763474800,3.9594404,143.23,143.19,3.64628127]
[1641763481804,3.9594404,143.26,143.19,3.64628127]
[1641763482503,3.9594404,143.26,143.2,2.45770251]
[1641763482706,3.9594404,143.26,143.21,27.66479]
[1641763482906,3.9594404,143.26,143.21,31.31107127]
[1641763483305,3.9594404,143.26,143.22,3.64628127]
[1641763483706,3.9594404,143.26,143.23,3.64628127]
[1641763484307,3.9594404,143.26,143.18,27.66479]
[1641763484606,3.9594404,143.26,143.19,2.55181467]
[1641763484807,3.9594404,143.26,143.19,5.00975139]
[1641763485509,3.9594404,143.26,143.2,2.55181467]
[1641763486408,3.9594404,143.26,143.19,2.55181467]
[1641763486811,3.9594404,143.26,143.21,27.66479]
[1641763487011,4.0,143.24,143.21,27.66479]
[1641763487212,5.745,143.25,143.22,2.55181467]
[1641763487412,5.58522549,143.24,143.22,2.55181467]
[1641763487613,9.54466589,143.24,143.21,27.66479]
[1641763487913,13.54466589,143.24,143.18,27.66479]
[1641763488216,3.9594404,143.23,143.18,27.66479]
[1641763488513,3.9594404,143.23,143.19,2.5520521]
[1641763489013,3.9594404,143.25,143.19,2.5520521]
[1641763489412,3.9594404,143.26,143.19,2.5520521]
[1641763489613,7.9594404,143.26,143.19,2.5520521]
[1641763490415,3.9594404,143.25,143.19,2.5520521]
[1641763490817,5.7044404,143.26,143.19,2.5520521]
[1641763491216,9.54428558,143.25,143.19,2.5520521]
[1641763491417,13.54428558,143.25,143.19,2.5520521]
[1641763491615,3.9594404,143.24,143.19,2.5520521]
[1641763492116,13.54463038,143.24,143.19,2.5520521]
[1641763492416,9.54501365,143.23,143.19,2.5520521]
[1641763492618,11.29001365,143.23,143.19,2.5520521]
[1641763492816,3.9594404,143.22,143.18,2.5520521]
[1641763501626,9.54528512,143.22,143.18,2.5520521]
[1641763502027,3.9594404,143.21,143.16,2.5520521]
[1641763502429,3.9594404,143.21,143.17,2.46898729]
[1641763502728,3.9594404,143.21,143.18,2.5520521]
[1641763503629,3.9594404,143.21,143.16,2.5520521]
[1641763504031,3.9594404,143.21,143.17,3.9999]
[1641763504329,14.78712616,143.24,143.17,5.72739545]
[1641763504730,14.78712616,143.24,143.18,2.46854836]
[1641763504931,21.77012256,143.26,143.21,27.66479]
[1641763505532,3.96263748,143.25,143.22,3.34401765]
[1641763506334,3.96263748,143.27,143.22,3.34401765]
[1641763507335,3.96263748,143.28,143.22,3.34401765]
[1641763507734,3.96263748,143.28,143.22,36.34831765]
[1641763508234,7.96263748,143.28,143.23,3.34401765]
[1641763508434,4.0,143.26,143.23,3.34401765]
[1641763508634,1.745,143.25,143.19,27.66479]
[1641763508833,1.745,143.25,143.19,60.33779]
[1641763509034,3.96263748,143.24,143.2,3.34440321]
[1641763509237,3.96263748,143.24,143.2,5.81157049]
[1641763509834,3.96263748,143.24,143.21,3.34440321]
[1641763510035,3.96263748,143.24,143.21,5.81157049]
[1641763510737,3.96263748,143.26,143.22,3.34440321]
[1641763511536,3.96263748,143.26,143.2,3.34440321]
[1641763511938,3.96263748,143.27,143.2,3.34440321]
[1641763512538,3.96263748,143.27,143.21,2.46683725]
[1641763513239,3.96263748,143.27,143.22,3.34440321]
[1641763514343,7.96263748,143.27,143.22,3.34440321]
[1641763514541,2.46965422,143.26,143.2,3.34440321]
[1641763514941,3.96263748,143.25,143.2,3.34440321]
[1641763515342,3.96263748,143.25,143.21,2.46769587]
[1641763515845,3.96263748,143.25,143.22,3.34440321]
[1641763516445,3.96263748,143.25,143.22,11.46540321]
[1641763516649,3.96263748,143.27,143.22,11.46540321]
[1641763516947,3.96263748,143.27,143.23,3.34440321]
[1641763517146,3.96263748,143.27,143.23,31.00919321]
[1641763517345,3.96263748,143.28,143.23,31.00919321]
[1641763517845,3.96263748,143.28,143.24,3.34440321]
[1641763518246,3.96263748,143.29,143.24,3.34440321]
[1641763518648,13.54580666,143.29,143.24,36.09540321]
[1641763519247,6.43107775,143.28,143.24,32.751]
[1641763519646,3.96263748,143.27,143.24,32.751]
[1641763520446,3.96263748,143.28,143.24,32.751]
[1641763521349,18.78712616,143.3,143.24,32.751]
[1641763521350,3.96263748,143.29,143.24,32.751]
[1641763522347,7.96263748,143.29,143.24,32.751]
[1641763522848,10.42997755,143.28,143.24,32.751]
[1641763523248,6.42997755,143.28,143.24,32.751]
[1641763523548,6.42997755,143.27,143.24,32.751]
[1641763523948,3.96263748,143.26,143.24,32.751]
[1641763524649,3.96263748,143.26,143.23,27.66479]
[1641763524850,3.96263748,143.28,143.23,27.66479]
[1641763525252,3.96263748,143.28,143.24,3.73905887]
[1641763525750,3.96263748,143.29,143.24,3.73905887]
[1641763525950,3.96263748,143.29,143.24,36.28605887]
[1641763526154,7.96263748,143.29,143.24,36.28605887]
[1641763526556,6.43048841,143.28,143.24,32.547]
[1641763526957,3.96263748,143.27,143.24,32.547]
[1641763527956,3.96263748,143.28,143.24,32.547]
[1641763528156,4.0,143.27,143.24,32.547]
[1641763528756,3.96263748,143.26,143.24,32.547]
[1641763528957,3.96263748,143.26,143.19,42.45191616]
[1641763529158,3.96263748,143.26,143.2,33.2489]
[1641763529358,3.96263748,143.26,143.19,42.45191616]
[1641763529359,4.0,143.21,143.18,14.78712616]
[1641763529559,6.98592336,143.2,143.18,14.78712616]
[1641763529959,3.96263748,143.19,143.18,14.78712616]
[1641763530359,3.96263748,143.19,143.13,2.46821162]
[1641763530860,3.96263748,143.19,143.14,3.74138167]
[1641763531861,3.96263748,143.19,143.15,2.46821162]
[1641763532661,3.96263748,143.19,143.16,3.74138167]
[1641763533064,20.37273036,143.23,143.16,3.74138167]
[1641763533065,3.96263748,143.22,143.17,27.66479]
[1641763533364,3.96263748,143.22,143.18,3.74138167]
[1641763534063,3.96263748,143.22,143.17,27.66479]
[1641763534664,2.46877231,143.21,143.17,27.66479]
[1641763534861,2.46877231,143.21,143.18,3.74107311]
[1641763535262,3.96263748,143.2,143.18,3.74107311]
[1641763536064,3.96263748,143.22,143.18,3.74107311]
[1641763537564,3.96263748,143.23,143.18,3.74107311]
[1641763538565,3.96263748,143.23,143.18,7.74097311]
[1641763538966,3.96263748,143.23,143.18,3.74107311]
[1641763539166,3.96263748,143.23,143.2,27.66479]
[1641763539367,3.96263748,143.24,143.2,27.66479]
[1641763539768,3.96263748,143.27,143.21,3.74107311]
[1641763540668,2.46605857,143.26,143.21,3.74107311]
[1641763540874,4.0,143.25,143.21,3.74107311]
[1641763541067,6.98397178,143.24,143.2,27.66479]
[1641763541272,1.745,143.23,143.17,27.66479]
[1641763541470,5.70763748,143.23,143.17,27.66479]
[1641763541971,3.96263748,143.22,143.18,3.74087438]
[1641763542371,3.96263748,143.22,143.15,27.66479]
[1641763542569,1.745,143.21,143.15,27.66479]
[1641763542768,1.745,143.21,143.16,3.74149121]
[1641763542970,5.70763748,143.22,143.16,3.74149121]
[1641763543170,3.96263748,143.2,143.16,3.74149121]
[1641763543571,3.96263748,143.21,143.16,3.74149121]
[1641763543973,3.96263748,143.21,143.14,3.74149121]
[1641763544672,9.54885802,143.21,143.14,3.74149121]
[1641763544874,6.98567936,143.2,143.14,3.74149121]
[1641763545073,1.746,143.19,143.14,3.74149121]
[1641763545273,3.96263748,143.19,143.15,27.66479]
[1641763545874,3.96263748,143.19,143.16,3.74149121]
[1641763548784,3.96263748,143.19,143.15,27.66479]
[1641763549982,7.96263748,143.19,143.15,27.66479]
[1641763550383,7.96263748,143.19,143.13,33.2323]
[1641763550584,3.96263748,143.18,143.13,33.2323]
[1641763550984,3.96263748,143.18,143.14,3.74212657]
[1641763552186,9.55007472,143.18,143.14,3.74212657]
[1641763552586,3.96263748,143.17,143.14,3.74212657]
[1641763556494,4.0,143.15,143.14,3.74212657]
[1641763556693,5.58869084,143.15,143.14,3.74212657]
[1641763556893,9.55132832,143.15,143.09,60.88269]
[1641763557294,3.96263748,143.14,143.1,3.74310534]
[1641763561901,3.96263748,143.14,143.1,7.74300534]
[1641763562099,21.77402572,143.18,143.1,7.74300534]
[1641763562300,14.78712616,143.18,143.11,3.74310534]
[1641763562902,14.78712616,143.2,143.11,6.20992465]
[1641763563301,14.78712616,143.2,143.12,27.66479]
[1641763563502,2.99803027,143.19,143.12,40.05389534]
[1641763563701,2.99803027,143.19,143.13,34.6806]
[1641763564502,2.99803027,143.19,143.14,3.74310534]
[1641763564701,2.99803027,143.19,143.14,6.20992465]
[1641763565602,2.99803027,143.19,143.14,3.74310534]
[1641763565801,2.99803027,143.21,143.15,3.74310534]
[1641763566201,2.99803027,143.18,143.15,3.74310534]
[1641763566602,2.46887466,143.2,143.14,3.74310534]
[1641763566904,2.99803027,143.21,143.14,3.74310534]
[1641763567202,2.99803027,143.19,143.14,3.74310534]
[1641763567402,2.99803027,143.2,143.14,3.74310534]
[1641763569905,1.746,143.19,143.14,3.74310534]
[1641763570205,4.21818835,143.19,143.14,3.74310534]
[1641763570406,2.99803027,143.18,143.14,3.74310534]
[1641763570605,5.47021862,143.18,143.14,3.74310534]
[1641763571206,2.99803027,143.17,143.14,3.74310534]
[1641763571906,9.58882247,143.15,143.14,3.74310534]
[1641763572106,9.58882247,143.15,143.11,18.5302315]
[1641763572308,1.746,143.14,143.11,18.5302315]
[1641763572606,4.74403027,143.14,143.12,3.74310534]
[1641763573006,2.99803027,143.13,143.1,3.74310534]
[1641763573806,2.99803027,143.14,143.1,3.74310534]
[1641763574506,2.99803027,143.14,143.11,2.47060821]
[1641763575005,2.99803027,143.14,143.12,3.74310534]
[1641763576309,2.99803027,143.14,143.1,3.74310534]
[1641763577408,2.99803027,143.14,143.11,2.47040401]
[1641763578108,2.99803027,143.14,143.12,3.74310534]
[1641763578510,2.99803027,143.14,143.1,3.74310534]
[1641763582016,2.99803027,143.15,143.1,3.74310534]
[1641763587016,2.99803027,143.15,143.11,2.46943336]
[1641763587517,2.99803027,143.15,143.12,3.74310534]
[1641763589019,2.99803027,143.15,143.1,3.74310534]
[1641763589419,2.99803027,143.15,143.13,3.74310534]
[1641763589819,2.99803027,143.15,143.09,74.58071616]
[1641763589820,2.99803027,143.15,143.1,3.74310534]
[1641763590518,2.99803027,143.15,143.11,2.46963378]
[1641763591120,2.99803027,143.15,143.12,3.74310534]
[1641763592421,2.99803027,143.15,143.1,3.74310534]
[1641763593123,2.54563027,143.15,143.1,3.74310534]
[1641763593323,25.02712616,143.2,143.11,2.46974597]
[1641763594023,10.24,143.2,143.12,14.78712616]
[1641763594225,27.66479,143.21,143.14,27.66479]
[1641763594622,2.39803032,143.2,143.15,3.96403314]
[1641763595225,2.39803032,143.2,143.15,6.43377911]
[1641763596123,2.39803032,143.2,143.16,6.43377911]
[1641763596525,2.39803032,143.2,143.17,3.96403314]
[1641763596924,14.78712616,143.23,143.17,3.96403314]
[1641763597325,14.78712616,143.23,143.16,3.9999]
[1641763597526,14.78712616,143.23,143.17,3.9999]
[1641763597927,5.58480857,143.25,143.18,2.46785493]
[1641763598128,14.78712616,143.26,143.18,2.46785493]
[1641763598428,2.2773337,143.24,143.22,27.66479]
[1641763598626,2.2773337,143.25,143.22,27.66479]
[1641763599027,2.2773337,143.25,143.23,3.96275229]
[1641763599528,2.46600948,143.27,143.23,3.96275229]
[1641763599934,14.78712616,143.29,143.23,3.96275229]
[1641763600232,14.78712616,143.3,143.23,37.32505229]
[1641763600431,14.78712616,143.3,143.25,27.66479]
[1641763601330,2.4614694,143.31,143.25,27.66479]
[1641763602134,2.4614694,143.31,143.22,27.66479]
[1641763602135,4.0,143.3,143.22,27.66479]
[1641763602433,5.745,143.3,143.22,27.66479]
[1641763602832,5.745,143.3,143.23,3.96269258]
[1641763603234,2.4614694,143.29,143.23,3.96269258]
[1641763603633,2.4614694,143.29,143.22,27.66479]
[1641763604232,9.44300324,143.29,143.22,27.66479]
[1641763604833,4.0,143.27,143.19,60.56319]
[1641763605234,4.0,143.24,143.19,27.66479]
[1641763605434,5.745,143.26,143.2,3.96323249]
[1641763605633,11.32947451,143.26,143.2,3.96323249]
[1641763605833,13.79094391,143.26,143.2,3.96323249]
[1641763606034,20.77394031,143.26,143.2,3.96323249]
[1641763606234,20.77394031,143.26,143.16,3.96323249]
[1641763606436,20.77394031,143.26,143.19,27.66479]
[1641763606636,18.31247091,143.26,143.19,27.66479]
[1641763607040,18.31247091,143.26,143.2,3.96323249]
[1641763607238,9.5849593,143.25,143.2,3.96323249]
[1641763607443,1.745,143.24,143.2,3.96323249]
[1641763607840,1.745,143.24,143.16,3.96323249]
[1641763608242,7.33031388,143.24,143.16,3.96323249]
[1641763608443,7.33031388,143.24,143.16,31.62802249]
[1641763608744,7.33031388,143.24,143.17,3.96323249]
[1641763610446,38.99510388,143.24,143.17,3.96323249]
[1641763611045,34.99510388,143.24,143.16,3.96323249]
[1641763611949,33.25010388,143.24,143.16,3.96323249]
[1641763612448,5.58531388,143.24,143.16,3.96323249]
[1641763614152,7.33031388,143.24,143.16,3.96323249]
[1641763614552,5.58551891,143.23,143.16,3.96323249]
[1641763614755,8.84070965,143.23,143.16,3.96323249]
[1641763615152,0.79280548,143.22,143.16,3.96323249]
[1641763615953,4.0,143.19,143.16,3.96323249]
[1641763616152,4.0,143.19,143.14,27.66479]
[1641763616153,9.58778143,143.17,143.12,14.78712616]
[1641763616452,5.58778143,143.17,143.12,14.78712616]
[1641763616653,13.97978143,143.17,143.12,14.78712616]
[1641763616853,13.97978143,143.17,143.09,34.9822]
[1641763617052,17.97978143,143.17,143.09,34.9822]
[1641763617254,1.09382507,143.16,143.1,3.96562716]
[1641763617952,1.09382507,143.16,143.13,3.9999]
[1641763618152,42.45191616,143.2,143.13,3.9999]
[1641763618352,14.78712616,143.2,143.13,3.9999]
[1641763618552,16.53312616,143.24,143.16,27.66479]
[1641763618751,14.78712616,143.24,143.16,27.66479]
[1641763619352,14.78712616,143.24,143.17,3.96355989]
[1641763619652,34.64827406,143.25,143.17,3.96355989]
[1641763620052,6.70127073,143.26,143.17,3.96355989]
[1641763620552,6.70127073,143.26,143.2,27.66479]
[1641763620754,10.70127073,143.26,143.2,27.66479]
[1641763621154,10.70127073,143.26,143.21,3.96355989]
[1641763621454,10.70127073,143.26,143.21,39.40755989]
[1641763621853,10.70127073,143.26,143.21,35.444]
[1641763622153,2.46597907,143.25,143.21,35.444]
[1641763627161,6.46597907,143.25,143.21,35.444]
[1641763627363,12.05094826,143.25,143.16,61.62559]
[1641763627661,4.21097907,143.24,143.17,33.4573]
[1641763627862,5.58582374,143.22,143.17,33.4573]
[1641763628062,5.58582374,143.22,143.17,37.42100899]
[1641763628461,5.58582374,143.22,143.18,3.96370899]
[1641763632267,1.745,143.24,143.18,3.96370899]
[1641763632467,14.78712616,143.25,143.18,3.96370899]
[1641763633370,1.55716707,143.24,143.18,3.96370899]
[1641763633968,5.55716707,143.24,143.18,3.96370899]
[1641763634168,5.58551643,143.23,143.18,3.96370899]
[1641763634368,12.05490994,143.23,143.18,3.96370899]
[1641763634568,1.55716707,143.22,143.16,27.66479]
[1641763635069,46.47847674,143.22,143.17,3.9645131]
[1641763635469,1.55716707,143.21,143.15,38.6210131]
[1641763635871,4.02656058,143.21,143.16,3.9645131]
[1641763636470,1.55716707,143.2,143.16,3.9645131]
[1641763636669,4.02656058,143.2,143.16,3.9645131]
[1641763637171,1.55716707,143.19,143.16,3.9645131]
[1641763637771,1.55716707,143.21,143.16,3.9645131]
[1641763637970,8.54235846,143.21,143.16,3.9645131]
[1641763638569,1.55716707,143.2,143.16,3.9645131]
[1641763638970,4.02704911,143.2,143.16,3.9645131]
[1641763639572,1.55716707,143.2,143.16,3.9645131]